[Event "Early-Titled-Tuesday-Blitz-July-09-2024"]
[Site "Chess.com"]
[Date "2024.07.09"]
[Round "8"]
[White "aanshnerurkar"]
[Black "Ganziitoo"]
[Result "0-1"]
[WhiteElo "2446"]
[BlackElo "2311"]
[TimeControl "180+1"]
[EndTime "9:31:16 PDT"]
[Termination "Ganziitoo won by resignation"]

1. e4 {[%clk 0:03:00.9]} 1... d6 {[%clk 0:02:57]} 2. d4 {[%clk 0:03:00.3]} 2...
Nf6 {[%clk 0:02:57.9]} 3. Nc3 {[%clk 0:02:59.6]} 3... Nbd7 {[%clk 0:02:58.3]} 4.
Be3 {[%clk 0:02:59.2]} 4... e5 {[%clk 0:02:59.2]} 5. h3 {[%clk 0:02:58.5]} 5...
Be7 {[%clk 0:02:56.5]} 6. Nf3 {[%clk 0:02:58.6]} 6... O-O {[%clk 0:02:56.4]} 7.
Bc4 {[%clk 0:02:59.1]} 7... c6 {[%clk 0:02:56.7]} 8. a4 {[%clk 0:02:57]} 8...
Qc7 {[%clk 0:02:44.1]} 9. Bb3 {[%clk 0:02:47.3]} 9... a5 {[%clk 0:02:27.1]} 10.
O-O {[%clk 0:02:46.4]} 10... h6 {[%clk 0:02:26.2]} 11. Qd2 {[%clk 0:02:41.3]}
11... Re8 {[%clk 0:02:25.4]} 12. Rad1 {[%clk 0:02:37.2]} 12... Nf8 {[%clk
0:02:25.5]} 13. Rfe1 {[%clk 0:02:26.4]} 13... Ng6 {[%clk 0:02:25.1]} 14. Kh2
{[%clk 0:02:02.1]} 14... Bf8 {[%clk 0:02:15.3]} 15. d5 {[%clk 0:01:49.3]} 15...
Bd7 {[%clk 0:02:12]} 16. Kg1 {[%clk 0:01:45]} 16... Nh5 {[%clk 0:02:07.6]} 17.
Nh2 {[%clk 0:01:40.7]} 17... Nhf4 {[%clk 0:02:04.3]} 18. f3 {[%clk 0:01:36.2]}
18... Rad8 {[%clk 0:02:01.5]} 19. Qf2 {[%clk 0:01:26.5]} 19... c5 {[%clk
0:01:55.4]} 20. Kh1 {[%clk 0:01:23.6]} 20... Kh8 {[%clk 0:01:49.2]} 21. Bc4
{[%clk 0:01:22.5]} 21... f5 {[%clk 0:01:40.6]} 22. Nb5 {[%clk 0:01:10.8]} 22...
Qb8 {[%clk 0:01:40]} 23. Qd2 {[%clk 0:00:58.8]} 23... b6 {[%clk 0:01:39.7]} 24.
Nf1 {[%clk 0:00:50.2]} 24... Be7 {[%clk 0:01:28.7]} 25. Bf2 {[%clk 0:00:47.6]}
25... Bg5 {[%clk 0:01:25.2]} 26. Qc3 {[%clk 0:00:39.4]} 26... fxe4 {[%clk
0:01:20.4]} 27. Rxe4 {[%clk 0:00:35.7]} 27... Rf8 {[%clk 0:01:18.4]} 28. Ng3
{[%clk 0:00:35]} 28... Rf6 {[%clk 0:01:03.1]} 29. Ree1 {[%clk 0:00:34.8]} 29...
Nh4 {[%clk 0:00:46.1]} 30. Ne4 {[%clk 0:00:32.3]} 30... Nhxg2 {[%clk 0:00:38]}
31. Nxf6 {[%clk 0:00:28.7]} 31... Bxf6 {[%clk 0:00:38.6]} 32. Rg1 {[%clk
0:00:27.9]} 32... Bxh3 {[%clk 0:00:35.8]} 33. Bf1 {[%clk 0:00:26.9]} 33... Nh4
{[%clk 0:00:24.8]} 34. Bg3 {[%clk 0:00:21.9]} 34... Bf5 {[%clk 0:00:16.3]} 35.
Rd2 {[%clk 0:00:08.5]} 35... Qc8 {[%clk 0:00:15.5]} 36. Rh2 {[%clk 0:00:08]}
36... Nhg6 {[%clk 0:00:15.5]} 37. Bd3 {[%clk 0:00:08.1]} 37... Bxd3 {[%clk
0:00:13.3]} 38. cxd3 {[%clk 0:00:08.2]} 38... Qf5 {[%clk 0:00:13.9]} 39. Qd2
{[%clk 0:00:07.5]} 39... Kh7 {[%clk 0:00:09.4]} 40. Qe3 {[%clk 0:00:07.6]} 40...
Nxd5 {[%clk 0:00:09.5]} 41. Qe4 {[%clk 0:00:07.8]} 41... Qxe4 {[%clk 0:00:06]}
42. dxe4 {[%clk 0:00:07.7]} 42... Ndf4 {[%clk 0:00:02]} 43. Bxf4 {[%clk
0:00:07.8]} 43... Nxf4 {[%clk 0:00:02.9]} 44. Rd2 {[%clk 0:00:08.1]} 44... d5
{[%clk 0:00:03.5]} 45. exd5 {[%clk 0:00:08.4]} 45... Rxd5 {[%clk 0:00:03.7]} 46.
Rxd5 {[%clk 0:00:08.5]} 46... Nxd5 {[%clk 0:00:04.6]} 47. Rd1 {[%clk 0:00:09]}
47... Nb4 {[%clk 0:00:02.1]} 48. Rd6 {[%clk 0:00:08.9]} 48... Nc2 {[%clk
0:00:02.2]} 49. Rxb6 {[%clk 0:00:08.7]} 49... Nd4 {[%clk 0:00:02]} 50. Nxd4
{[%clk 0:00:08.8]} 50... cxd4 {[%clk 0:00:02.4]} 51. Kg2 {[%clk 0:00:07.8]}
51... Kg6 {[%clk 0:00:02.7]} 52. Kf1 {[%clk 0:00:07.6]} 52... Kf5 {[%clk
0:00:03.6]} 53. Ke2 {[%clk 0:00:07.5]} 53... g5 {[%clk 0:00:04.5]} 54. Rb5
{[%clk 0:00:07.2]} 54... h5 {[%clk 0:00:05.4]} 55. Rxa5 {[%clk 0:00:07.1]} 55...
g4 {[%clk 0:00:06.3]} 56. fxg4+ {[%clk 0:00:07.1]} 56... hxg4 {[%clk 0:00:07.2]}
57. Rb5 {[%clk 0:00:06.4]} 57... Ke4 {[%clk 0:00:07.2]} 58. a5 {[%clk
0:00:06.4]} 58... d3+ {[%clk 0:00:07.6]} 59. Kd1 {[%clk 0:00:06.6]} 59... g3
{[%clk 0:00:06.7]} 60. Rb8 {[%clk 0:00:06.2]} 60... Bg5 {[%clk 0:00:04]} 61. Rg8
{[%clk 0:00:06]} 61... Kf4 {[%clk 0:00:04.5]} 62. Ke1 {[%clk 0:00:05]} 62... d2+
{[%clk 0:00:03.3]} 63. Kxd2 {[%clk 0:00:03.9]} 63... g2 {[%clk 0:00:03.8]} 64.
Rf8+ {[%clk 0:00:04.3]} 64... Ke4+ {[%clk 0:00:03]} 65. Kc2 {[%clk 0:00:01.1]}
65... g1=Q {[%clk 0:00:03.9]} 66. a6 {[%clk 0:00:01.5]} 66... Qc5+ {[%clk
0:00:03.8]} 67. Kb3 {[%clk 0:00:01.5]} 67... Qxf8 {[%clk 0:00:04.7]} 68. Ka4
{[%clk 0:00:01.9]} 68... Qa8 {[%clk 0:00:05.6]} 69. Ka5 {[%clk 0:00:01.9]} 69...
Be3 {[%clk 0:00:05.5]} 70. b4 {[%clk 0:00:01.3]} 70... Kd5 {[%clk 0:00:04.8]}
71. b5 {[%clk 0:00:01.6]} 71... Kc5 {[%clk 0:00:03.8]} 0-1

[Event "Early-Titled-Tuesday-Blitz-July-09-2024"]
[Site "Chess.com"]
[Date "2024.07.09"]
[Round "8"]
[White "GHANDEEVAM2003"]
[Black "Volodar_Murzin"]
[Result "0-1"]
[WhiteElo "3167"]
[BlackElo "3010"]
[TimeControl "180+1"]
[EndTime "9:31:17 PDT"]
[Termination "Volodar_Murzin won by resignation"]

1. e4 {[%clk 0:03:00.9]} 1... c6 {[%clk 0:02:58.3]} 2. d4 {[%clk 0:02:59.9]}
2... d5 {[%clk 0:02:58.7]} 3. Nc3 {[%clk 0:03:00.4]} 3... dxe4 {[%clk
0:02:57.9]} 4. Nxe4 {[%clk 0:03:01.1]} 4... Nf6 {[%clk 0:02:58.8]} 5. Nxf6+
{[%clk 0:03:01.2]} 5... exf6 {[%clk 0:02:59.7]} 6. c3 {[%clk 0:03:02.1]} 6...
Bd6 {[%clk 0:02:59.9]} 7. Bd3 {[%clk 0:03:02.8]} 7... O-O {[%clk 0:02:58.2]} 8.
Ne2 {[%clk 0:03:03.5]} 8... Re8 {[%clk 0:02:57.3]} 9. O-O {[%clk 0:03:03.4]}
9... Nd7 {[%clk 0:02:58]} 10. Ng3 {[%clk 0:03:03.4]} 10... Nf8 {[%clk
0:02:58.4]} 11. f4 {[%clk 0:03:03.6]} 11... Qc7 {[%clk 0:02:49.3]} 12. f5 {[%clk
0:02:53.1]} 12... Bxg3 {[%clk 0:02:42.2]} 13. hxg3 {[%clk 0:02:54]} 13... c5
{[%clk 0:02:43.1]} 14. Bf4 {[%clk 0:02:21.8]} 14... Qb6 {[%clk 0:02:41.9]} 15.
Qb3 {[%clk 0:02:04.2]} 15... Qxb3 {[%clk 0:02:06.3]} 16. axb3 {[%clk 0:02:05.1]}
16... cxd4 {[%clk 0:02:07.1]} 17. cxd4 {[%clk 0:02:05.8]} 17... Rd8 {[%clk
0:02:08]} 18. Be3 {[%clk 0:02:06]} 18... Nd7 {[%clk 0:02:02.3]} 19. Kf2 {[%clk
0:01:51.6]} 19... Nb6 {[%clk 0:01:41.1]} 20. Be4 {[%clk 0:01:46.3]} 20... Nd5
{[%clk 0:01:36.7]} 21. Bd2 {[%clk 0:01:46.5]} 21... b6 {[%clk 0:01:20.4]} 22. b4
{[%clk 0:01:10.5]} 22... Bb7 {[%clk 0:01:09.6]} 23. b5 {[%clk 0:01:10.7]} 23...
Rd7 {[%clk 0:01:07.3]} 24. g4 {[%clk 0:01:06.5]} 24... Ne7 {[%clk 0:00:58.3]}
25. Bxb7 {[%clk 0:01:07.4]} 25... Rxb7 {[%clk 0:00:59]} 26. Ra4 {[%clk
0:01:04.1]} 26... Rd8 {[%clk 0:00:56.5]} 27. Rfa1 {[%clk 0:01:02]} 27... Rdd7
{[%clk 0:00:54.9]} 28. Kf3 {[%clk 0:00:57.8]} 28... h5 {[%clk 0:00:47.3]} 29.
Bf4 {[%clk 0:00:46.4]} 29... hxg4+ {[%clk 0:00:41.4]} 30. Kxg4 {[%clk
0:00:47.3]} 30... g6 {[%clk 0:00:42.2]} 31. fxg6 {[%clk 0:00:46.5]} 31... fxg6
{[%clk 0:00:43.1]} 32. Kf3 {[%clk 0:00:42.7]} 32... Kf7 {[%clk 0:00:34.1]} 33.
g4 {[%clk 0:00:42.6]} 33... g5 {[%clk 0:00:22.2]} 34. Bg3 {[%clk 0:00:34.1]}
34... Kg6 {[%clk 0:00:22.1]} 35. Rc4 {[%clk 0:00:28.7]} 35... Rd5 {[%clk
0:00:19.7]} 36. Rb4 {[%clk 0:00:20.3]} 36... f5 {[%clk 0:00:19.4]} 37. Be5
{[%clk 0:00:18.9]} 37... fxg4+ {[%clk 0:00:17.8]} 38. Kxg4 {[%clk 0:00:19.8]}
38... Nf5 {[%clk 0:00:18.7]} 39. Rc1 {[%clk 0:00:15.8]} 39... Nh6+ {[%clk
0:00:10.8]} 40. Kf3 {[%clk 0:00:16.3]} 40... Nf7 {[%clk 0:00:08.7]} 41. Rc6+
{[%clk 0:00:14.1]} 41... Kh5 {[%clk 0:00:08.8]} 42. Ke4 {[%clk 0:00:14.5]} 42...
Rbd7 {[%clk 0:00:09.5]} 43. Rb3 {[%clk 0:00:12.4]} 43... Nxe5 {[%clk 0:00:05.5]}
44. dxe5 {[%clk 0:00:13.3]} 44... Kg4 {[%clk 0:00:06.2]} 45. e6 {[%clk
0:00:09.9]} 45... Rd4+ {[%clk 0:00:06.2]} 46. Ke3 {[%clk 0:00:10.4]} 46... R7d5
{[%clk 0:00:01.7]} 47. e7 {[%clk 0:00:10.7]} 47... Rd1 {[%clk 0:00:02.4]} 48.
Rc2 {[%clk 0:00:04.4]} 48... Re1+ {[%clk 0:00:01.3]} 49. Kf2 {[%clk 0:00:04]}
49... Rxe7 {[%clk 0:00:01.7]} 50. Rg3+ {[%clk 0:00:04.9]} 50... Kf5 {[%clk
0:00:02]} 51. Rb3 {[%clk 0:00:04.2]} 51... Ree5 {[%clk 0:00:02.1]} 52. Rc7
{[%clk 0:00:02.1]} 52... Rxb5 {[%clk 0:00:02.1]} 53. Rf3+ {[%clk 0:00:02.8]}
53... Kg4 {[%clk 0:00:02.2]} 54. Rg3+ {[%clk 0:00:02.8]} 54... Kh5 {[%clk
0:00:02.9]} 55. b3 {[%clk 0:00:02.2]} 55... Rf5+ {[%clk 0:00:02.8]} 56. Kg2
{[%clk 0:00:02.4]} 56... Ra5 {[%clk 0:00:03.3]} 57. Rg7 {[%clk 0:00:03]} 57...
Ra2+ {[%clk 0:00:03]} 58. Kh3 {[%clk 0:00:03.6]} 58... Rc5 {[%clk 0:00:03.5]}
59. Rd3 {[%clk 0:00:03]} 59... Rcc2 {[%clk 0:00:02.9]} 60. Rh7+ {[%clk
0:00:03.5]} 60... Kg6 {[%clk 0:00:03.3]} 61. Rb7 {[%clk 0:00:04.3]} 61... Rh2+
{[%clk 0:00:03.9]} 62. Kg3 {[%clk 0:00:05]} 62... Rag2+ {[%clk 0:00:04.6]} 63.
Kf3 {[%clk 0:00:05.7]} 63... Rh3+ {[%clk 0:00:05.3]} 64. Kxg2 {[%clk 0:00:06.6]}
64... Rxd3 {[%clk 0:00:06.2]} 65. b4 {[%clk 0:00:06.7]} 65... Rb3 {[%clk
0:00:06.7]} 66. Rxa7 {[%clk 0:00:06.4]} 66... Rxb4 {[%clk 0:00:07.4]} 67. Kf3
{[%clk 0:00:07.3]} 67... Kf5 {[%clk 0:00:07.9]} 68. Rf7+ {[%clk 0:00:07.7]}
68... Kg6 {[%clk 0:00:08.5]} 69. Rb7 {[%clk 0:00:07.9]} 69... Rf4+ {[%clk
0:00:09]} 70. Ke3 {[%clk 0:00:08.4]} 70... Rf6 {[%clk 0:00:09.1]} 71. Ke4 {[%clk
0:00:09.3]} 71... g4 {[%clk 0:00:09.8]} 72. Rb8 {[%clk 0:00:09.8]} 72... Kg5
{[%clk 0:00:10.2]} 73. Rh8 {[%clk 0:00:09.1]} 73... b5 {[%clk 0:00:08.7]} 74.
Ke5 {[%clk 0:00:08.6]} 74... g3 {[%clk 0:00:08.2]} 75. Ke4 {[%clk 0:00:08.6]}
75... g2 {[%clk 0:00:06.2]} 0-1

[Event "Early-Titled-Tuesday-Blitz-July-09-2024"]
[Site "Chess.com"]
[Date "2024.07.09"]
[Round "8"]
[White "Brown_Bear_MGL"]
[Black "ilqar_74"]
[Result "1/2-1/2"]
[WhiteElo "2639"]
[BlackElo "2880"]
[TimeControl "180+1"]
[EndTime "9:31:40 PDT"]
[Termination "Game drawn by 50-move rule"]

1. b3 {[%clk 0:03:00.9]} 1... Nf6 {[%clk 0:02:59.4]} 2. Bb2 {[%clk 0:02:59.8]}
2... g6 {[%clk 0:03:00]} 3. Nf3 {[%clk 0:02:55.9]} 3... Bg7 {[%clk 0:03:00.5]}
4. e3 {[%clk 0:02:55.7]} 4... O-O {[%clk 0:03:01]} 5. Be2 {[%clk 0:02:55.4]}
5... d5 {[%clk 0:03:01.6]} 6. c4 {[%clk 0:02:55]} 6... c5 {[%clk 0:03:01.3]} 7.
cxd5 {[%clk 0:02:51.9]} 7... Nxd5 {[%clk 0:03:02.2]} 8. Bxg7 {[%clk 0:02:36]}
8... Kxg7 {[%clk 0:03:02.3]} 9. Nc3 {[%clk 0:02:36.6]} 9... Nxc3 {[%clk
0:03:01]} 10. dxc3 {[%clk 0:02:36.4]} 10... Qxd1+ {[%clk 0:03:01.6]} 11. Rxd1
{[%clk 0:02:36]} 11... Nc6 {[%clk 0:03:02.3]} 12. Bb5 {[%clk 0:02:29.8]} 12...
Na5 {[%clk 0:03:02.3]} 13. Ke2 {[%clk 0:02:19.9]} 13... a6 {[%clk 0:03:02]} 14.
Bd7 {[%clk 0:02:19.9]} 14... Rd8 {[%clk 0:03:00.6]} 15. Bxc8 {[%clk 0:02:18.9]}
15... Raxc8 {[%clk 0:03:01.5]} 16. Ne5 {[%clk 0:02:14.1]} 16... b5 {[%clk
0:02:55.6]} 17. Rxd8 {[%clk 0:01:53.3]} 17... Rxd8 {[%clk 0:02:55.1]} 18. Rd1
{[%clk 0:01:52.9]} 18... Rxd1 {[%clk 0:02:54]} 19. Kxd1 {[%clk 0:01:53.8]} 19...
f6 {[%clk 0:02:53.4]} 20. Nd7 {[%clk 0:01:48.8]} 20... Nb7 {[%clk 0:02:53.2]}
21. b4 {[%clk 0:01:37.7]} 21... cxb4 {[%clk 0:02:45.8]} 22. cxb4 {[%clk
0:01:37.5]} 22... Kf7 {[%clk 0:02:46.4]} 23. Nb8 {[%clk 0:01:25.7]} 23... a5
{[%clk 0:02:42.3]} 24. Nc6 {[%clk 0:01:23.4]} 24... axb4 {[%clk 0:02:40.9]} 25.
Nxb4 {[%clk 0:01:24.3]} 25... Ke6 {[%clk 0:02:41.3]} 26. Kd2 {[%clk 0:01:23.8]}
26... Kd6 {[%clk 0:02:41.4]} 27. Kc3 {[%clk 0:01:20.8]} 27... Nc5 {[%clk
0:02:41.9]} 28. f3 {[%clk 0:01:18.4]} 28... Na4+ {[%clk 0:02:42]} 29. Kd4 {[%clk
0:01:13.4]} 29... e5+ {[%clk 0:02:42.1]} 30. Kd3 {[%clk 0:01:10]} 30... f5
{[%clk 0:02:41.1]} 31. e4 {[%clk 0:01:02.7]} 31... Nc5+ {[%clk 0:02:38.3]} 32.
Ke3 {[%clk 0:01:01.7]} 32... f4+ {[%clk 0:02:38.7]} 33. Kd2 {[%clk 0:01:01.3]}
33... Ne6 {[%clk 0:02:39]} 34. Nd5 {[%clk 0:00:57.8]} 34... Kc5 {[%clk
0:02:36.9]} 35. Kc3 {[%clk 0:00:48]} 35... g5 {[%clk 0:02:35.8]} 36. h3 {[%clk
0:00:46.7]} 36... h6 {[%clk 0:02:25.9]} 37. Nf6 {[%clk 0:00:46.6]} 37... b4+
{[%clk 0:02:22.5]} 38. Kd3 {[%clk 0:00:46]} 38... Nd8 {[%clk 0:01:58.2]} 39. Ng4
{[%clk 0:00:44.4]} 39... Nf7 {[%clk 0:01:57.1]} 40. Nf6 {[%clk 0:00:42.6]} 40...
Kb5 {[%clk 0:01:54.2]} 41. Ng4 {[%clk 0:00:34.9]} 41... h5 {[%clk 0:01:43.3]}
42. Nf6 {[%clk 0:00:32.8]} 42... h4 {[%clk 0:01:43.9]} 43. Nd5 {[%clk
0:00:31.8]} 43... Nd8 {[%clk 0:01:34.2]} 44. Nc7+ {[%clk 0:00:31.4]} 44... Ka4
{[%clk 0:01:26.8]} 45. Kc2 {[%clk 0:00:22.7]} 45... Ka3 {[%clk 0:01:24.8]} 46.
Kb1 {[%clk 0:00:22.6]} 46... b3 {[%clk 0:01:23.8]} 47. axb3 {[%clk 0:00:20.4]}
47... Kxb3 {[%clk 0:01:24.7]} 48. Nd5 {[%clk 0:00:18.5]} 48... Ne6 {[%clk
0:01:22.5]} 49. Kc1 {[%clk 0:00:18.4]} 49... Nc5 {[%clk 0:01:10.5]} 50. Kd2
{[%clk 0:00:17.6]} 50... Kc4 {[%clk 0:01:08.1]} 51. Nf6 {[%clk 0:00:13.6]} 51...
Nb3+ {[%clk 0:01:04.1]} 52. Ke2 {[%clk 0:00:13.2]} 52... Nd4+ {[%clk 0:01:04.4]}
53. Kd2 {[%clk 0:00:13]} 53... Nb3+ {[%clk 0:01:00.8]} 54. Ke2 {[%clk
0:00:13.1]} 54... Nd4+ {[%clk 0:00:59.8]} 55. Kd2 {[%clk 0:00:13.3]} 55... Kc5
{[%clk 0:00:56.5]} 56. Ng4 {[%clk 0:00:12.8]} 56... Kd6 {[%clk 0:00:51.1]} 57.
Kd3 {[%clk 0:00:13]} 57... Nc6 {[%clk 0:00:50.1]} 58. Nf6 {[%clk 0:00:12.7]}
58... Nd8 {[%clk 0:00:49.8]} 59. Nh7 {[%clk 0:00:11.7]} 59... Nf7 {[%clk
0:00:49.6]} 60. Nf6 {[%clk 0:00:11.5]} 60... Ke6 {[%clk 0:00:50.2]} 61. Nd5
{[%clk 0:00:11.6]} 61... Nd6 {[%clk 0:00:49.2]} 62. Nc3 {[%clk 0:00:11.3]} 62...
Nb7 {[%clk 0:00:48.9]} 63. Nd5 {[%clk 0:00:11.5]} 63... Nc5+ {[%clk 0:00:48.7]}
64. Ke2 {[%clk 0:00:12.1]} 64... Nb3 {[%clk 0:00:47.7]} 65. Kd3 {[%clk
0:00:11.4]} 65... Na5 {[%clk 0:00:44.8]} 66. Ke2 {[%clk 0:00:11.4]} 66... Nc4
{[%clk 0:00:45.2]} 67. Nc3 {[%clk 0:00:11.6]} 67... Ne3 {[%clk 0:00:44.3]} 68.
Kf2 {[%clk 0:00:11.9]} 68... Kd6 {[%clk 0:00:44.7]} 69. Nb5+ {[%clk 0:00:08.4]}
69... Kc6 {[%clk 0:00:45.2]} 70. Na7+ {[%clk 0:00:07.6]} 70... Kb6 {[%clk
0:00:43.9]} 71. Nc8+ {[%clk 0:00:07.7]} 71... Kc7 {[%clk 0:00:44.4]} 72. Ne7
{[%clk 0:00:08.1]} 72... Kd6 {[%clk 0:00:43.2]} 73. Ng6 {[%clk 0:00:05.7]} 73...
Ke6 {[%clk 0:00:42.8]} 74. Nf8+ {[%clk 0:00:05.7]} 74... Ke7 {[%clk 0:00:43.1]}
75. Ng6+ {[%clk 0:00:05.8]} 75... Kf6 {[%clk 0:00:43.7]} 76. Nf8 {[%clk
0:00:06]} 76... Nd1+ {[%clk 0:00:43.9]} 77. Ke1 {[%clk 0:00:05.6]} 77... Nc3
{[%clk 0:00:42.7]} 78. Nd7+ {[%clk 0:00:04.4]} 78... Ke6 {[%clk 0:00:42.8]} 79.
Nc5+ {[%clk 0:00:04.7]} 79... Kd6 {[%clk 0:00:42.7]} 80. Nd3 {[%clk 0:00:04.9]}
80... Na4 {[%clk 0:00:43.3]} 81. Nf2 {[%clk 0:00:05]} 81... Nc5 {[%clk
0:00:42.8]} 82. Ng4 {[%clk 0:00:05.4]} 82... Ke6 {[%clk 0:00:43.2]} 83. Ke2
{[%clk 0:00:05.8]} 83... Nb3 {[%clk 0:00:43.4]} 84. Ke1 {[%clk 0:00:06.1]} 84...
Nd4 {[%clk 0:00:43.4]} 85. Kf2 {[%clk 0:00:05.7]} 85... Nc6 {[%clk 0:00:43.3]}
86. Kf1 {[%clk 0:00:06]} 86... Kd6 {[%clk 0:00:43]} 87. Kf2 {[%clk 0:00:06.5]}
87... Kc5 {[%clk 0:00:43.1]} 88. Ke2 {[%clk 0:00:07]} 88... Kc4 {[%clk
0:00:41.2]} 89. Kd2 {[%clk 0:00:07.4]} 89... Kd4 {[%clk 0:00:37.4]} 90. Nf6
{[%clk 0:00:07.6]} 90... Nd8 {[%clk 0:00:35.6]} 91. Nh7 {[%clk 0:00:07.8]} 91...
Ne6 {[%clk 0:00:34.3]} 92. Nf6 {[%clk 0:00:08.2]} 92... Kc5 {[%clk 0:00:31.8]}
93. Ng4 {[%clk 0:00:08.7]} 93... Kd4 {[%clk 0:00:31.7]} 94. Nf6 {[%clk
0:00:09.3]} 94... Nf8 {[%clk 0:00:31.4]} 95. Ng4 {[%clk 0:00:09.8]} 95... Nd7
{[%clk 0:00:28.5]} 96. Nh6 {[%clk 0:00:09.7]} 96... Kc5 {[%clk 0:00:28.8]} 97.
Ng4 {[%clk 0:00:09.7]} 97... Kc4 {[%clk 0:00:27.2]} 1/2-1/2